[Event "Titled Tuesday Blitz November 07 Early 2023"]
[White "Osiecki, Stanislaw"]
[Black "Topalov, Aleksandar"]
[WhiteFideId "1102990"]
[BlackFideId "925659"]
[WhiteElo "2111"]
[BlackElo "2334"]
[Result "0-1"]
[Round "6"]
[TimeControl "180+1"]
[Date "2023.11.07"]
[WhiteClock "0:00:00"]
[BlackClock "0:00:06"]
[Board "193"]

1. e4 {[%clk 0:02:52]}  e6 {[%clk 0:02:59]} 2. d4 {[%clk 0:02:52]}  d5 {[%clk 0:02:59]} 3. e5 {[%clk 0:02:52]}  Ne7 {[%clk 0:02:59]} 4. Bd3 {[%clk 0:02:51]}  Qd7 {[%clk 0:02:59]} 5. c3 {[%clk 0:02:51]}  b6 {[%clk 0:02:59]} 6. Ne2 {[%clk 0:02:51]}  Ba6 {[%clk 0:02:59]} 7. O-O {[%clk 0:02:50]}  Bxd3 {[%clk 0:02:59]} 8. Qxd3 {[%clk 0:02:50]}  c5 {[%clk 0:02:59]} 9. f4 {[%clk 0:02:50]}  h5 {[%clk 0:02:59]} 10. h4 {[%clk 0:02:48]}  Nbc6 {[%clk 0:02:56]} 11. Ng3 {[%clk 0:02:47]}  g6 {[%clk 0:02:56]} 12. Be3 {[%clk 0:02:44]}  Ng8 {[%clk 0:02:55]} 13. dxc5 {[%clk 0:02:41]}  bxc5 {[%clk 0:02:53]} 14. Nd2 {[%clk 0:02:40]}  c4 {[%clk 0:02:48]} 15. Qe2 {[%clk 0:02:24]}  Be7 {[%clk 0:02:48]} 16. Nf3 {[%clk 0:02:23]}  Rb8 {[%clk 0:02:42]} 17. Rfb1 {[%clk 0:02:21]}  Nh6 {[%clk 0:02:34]} 18. Bd4 {[%clk 0:02:13]}  Nxd4 {[%clk 0:02:25]} 19. cxd4 {[%clk 0:01:59]}  Qd8 {[%clk 0:02:21]} 20. b3 {[%clk 0:01:58]}  Bxh4 {[%clk 0:01:54]} 21. Nf1 {[%clk 0:01:48]}  O-O {[%clk 0:01:26]} 22. bxc4 {[%clk 0:01:44]}  Rxb1 {[%clk 0:01:20]} 23. Rxb1 {[%clk 0:01:44]}  dxc4 {[%clk 0:01:19]} 24. Qxc4 {[%clk 0:01:39]}  Nf5 {[%clk 0:01:18]} 25. Rb7 {[%clk 0:01:20]}  Qa5 {[%clk 0:01:09]} 26. Qb3 {[%clk 0:01:12]}  Bd8 {[%clk 0:01:05]} 27. Rb5 {[%clk 0:01:07]}  Qa6 {[%clk 0:00:56]} 28. a4 {[%clk 0:01:03]}  Bb6 {[%clk 0:00:52]} 29. Qb4 {[%clk 0:00:52]}  Rd8 {[%clk 0:00:50]} 30. a5 {[%clk 0:00:48]}  Bxd4+ {[%clk 0:00:48]} 31. Nxd4 {[%clk 0:00:47]}  Nxd4 {[%clk 0:00:47]} 32. Rb8 {[%clk 0:00:44]}  Rxb8 {[%clk 0:00:33]} 33. Qxb8+ {[%clk 0:00:44]}  Kg7 {[%clk 0:00:31]} 34. Qd8 {[%clk 0:00:43]}  Nf5 {[%clk 0:00:23]} 35. Qf6+ {[%clk 0:00:42]}  Kg8 {[%clk 0:00:23]} 36. Qd8+ {[%clk 0:00:42]}  Kh7 {[%clk 0:00:21]} 37. Qd7 {[%clk 0:00:33]}  Nh6 {[%clk 0:00:21]} 38. Qc7 {[%clk 0:00:29]}  Kg7 {[%clk 0:00:14]} 39. Nh2 {[%clk 0:00:28]}  Qe2 {[%clk 0:00:09]} 40. Nf3 {[%clk 0:00:07]}  Ng4 {[%clk 0:00:07]} 41. Qc1 {[%clk 0:00:04]}  Qf2+ {[%clk 0:00:06]} 42. Kh1 {[%clk 0:00:00]}  Qg3 {[%clk 0:00:06]} 0-1


[Site "https://www.chess.com"]

[Event "Titled Tuesday Blitz November 07 Early 2023"]
[White "Winkels, Marcel"]
[Black "Samaganova, Aleksandra"]
[WhiteFideId "1003887"]
[BlackFideId "13800221"]
[WhiteElo "2073"]
[BlackElo "2331"]
[Result "0-1"]
[Round "6"]
[TimeControl "180+1"]
[Date "2023.11.07"]
[WhiteClock "0:00:24"]
[BlackClock "0:01:06"]
[Board "194"]

1. e4 {[%clk 0:03:00]}  c5 {[%clk 0:02:57]} 2. Nf3 {[%clk 0:03:00]}  e6 {[%clk 0:02:57]} 3. d4 {[%clk 0:03:00]}  cxd4 {[%clk 0:02:58]} 4. Nxd4 {[%clk 0:03:01]}  a6 {[%clk 0:02:58]} 5. Nc3 {[%clk 0:03:01]}  Qc7 {[%clk 0:02:58]} 6. g3 {[%clk 0:02:58]}  Bb4 {[%clk 0:02:57]} 7. Bg2 {[%clk 0:02:55]}  Bxc3+ {[%clk 0:02:52]} 8. bxc3 {[%clk 0:02:54]}  Qxc3+ {[%clk 0:02:52]} 9. Bd2 {[%clk 0:02:48]}  Qxd4 {[%clk 0:02:50]} 10. O-O {[%clk 0:02:49]}  Nc6 {[%clk 0:02:43]} 11. Qc1 {[%clk 0:02:45]}  Nge7 {[%clk 0:02:39]} 12. Be3 {[%clk 0:02:43]}  Qa4 {[%clk 0:02:37]} 13. f4 {[%clk 0:02:33]}  O-O {[%clk 0:02:25]} 14. f5 {[%clk 0:02:33]}  f6 {[%clk 0:02:20]} 15. Bc5 {[%clk 0:02:16]}  Re8 {[%clk 0:02:11]} 16. Rb1 {[%clk 0:02:15]}  Ne5 {[%clk 0:01:58]} 17. Rb4 {[%clk 0:02:03]}  Qc6 {[%clk 0:01:48]} 18. Qe3 {[%clk 0:02:02]}  d6 {[%clk 0:01:36]} 19. Bd4 {[%clk 0:01:48]}  b5 {[%clk 0:01:36]} 20. c3 {[%clk 0:01:40]}  Bb7 {[%clk 0:01:35]} 21. fxe6 {[%clk 0:01:33]}  N7g6 {[%clk 0:01:29]} 22. h4 {[%clk 0:01:20]}  Nc4 {[%clk 0:01:24]} 23. Qf2 {[%clk 0:01:16]}  Nge5 {[%clk 0:01:24]} 24. h5 {[%clk 0:01:15]}  h6 {[%clk 0:01:23]} 25. Rbb1 {[%clk 0:01:02]}  Bc8 {[%clk 0:01:09]} 26. a4 {[%clk 0:00:55]}  Bxe6 {[%clk 0:01:08]} 27. axb5 {[%clk 0:00:40]}  axb5 {[%clk 0:01:09]} 28. Bh3 {[%clk 0:00:24]}  Bxh3 {[%clk 0:01:06]} 0-1


[Site "https://www.chess.com"]

[Event "Titled Tuesday Blitz November 07 Early 2023"]
[White "Thake, Conrad"]
[Black "Pumpkin_in_moonlight"]
[WhiteFideId "5602947"]
[WhiteElo "1806"]
[BlackElo "2318"]
[Result "0-1"]
[Round "6"]
[TimeControl "180+1"]
[Date "2023.11.07"]
[WhiteClock "0:00:20"]
[BlackClock "0:00:10"]
[Board "198"]

1. e4 {[%clk 0:03:00]}  e5 {[%clk 0:02:58]} 2. Nf3 {[%clk 0:02:59]}  Nc6 {[%clk 0:02:56]} 3. d4 {[%clk 0:02:58]}  exd4 {[%clk 0:02:54]} 4. Bc4 {[%clk 0:02:59]}  Nf6 {[%clk 0:02:52]} 5. e5 {[%clk 0:02:58]}  d5 {[%clk 0:02:52]} 6. Bb5 {[%clk 0:02:56]}  Ne4 {[%clk 0:02:51]} 7. O-O {[%clk 0:02:48]}  Bc5 {[%clk 0:02:43]} 8. Bxc6+ {[%clk 0:02:46]}  bxc6 {[%clk 0:02:43]} 9. Nxd4 {[%clk 0:02:47]}  Ba6 {[%clk 0:02:39]} 10. Re1 {[%clk 0:02:44]}  Nxf2 {[%clk 0:02:22]} 11. Kxf2 {[%clk 0:02:31]}  Qh4+ {[%clk 0:02:20]} 12. g3 {[%clk 0:02:24]}  Qxd4+ {[%clk 0:02:13]} 13. Be3 {[%clk 0:02:18]}  Qxd1 {[%clk 0:02:00]} 14. Rxd1 {[%clk 0:02:15]}  Bxe3+ {[%clk 0:01:59]} 15. Kxe3 {[%clk 0:02:16]}  Ke7 {[%clk 0:01:57]} 16. Nd2 {[%clk 0:02:07]}  c5 {[%clk 0:01:44]} 17. c3 {[%clk 0:02:06]}  Ke6 {[%clk 0:01:43]} 18. Nf3 {[%clk 0:02:04]}  h6 {[%clk 0:01:40]} 19. b3 {[%clk 0:02:00]}  g5 {[%clk 0:01:36]} 20. h3 {[%clk 0:01:59]}  Rag8 {[%clk 0:01:08]} 21. g4 {[%clk 0:01:54]}  h5 {[%clk 0:01:06]} 22. Rh1 {[%clk 0:01:50]}  Bb7 {[%clk 0:01:00]} 23. Rae1 {[%clk 0:01:45]}  hxg4 {[%clk 0:00:47]} 24. hxg4 {[%clk 0:01:44]}  Rxh1 {[%clk 0:00:41]} 25. Rxh1 {[%clk 0:01:44]}  d4+ {[%clk 0:00:40]} 26. cxd4 {[%clk 0:01:43]}  cxd4+ {[%clk 0:00:32]} 27. Nxd4+ {[%clk 0:01:34]}  Kxe5 {[%clk 0:00:32]} 28. Rh7 {[%clk 0:01:20]}  Kf6 {[%clk 0:00:24]} 29. Nf5 {[%clk 0:01:13]}  Bc8 {[%clk 0:00:22]} 30. Rh6+ {[%clk 0:01:06]}  Rg6 {[%clk 0:00:21]} 31. Rh8 {[%clk 0:00:40]}  Bxf5 {[%clk 0:00:20]} 32. gxf5 {[%clk 0:00:40]}  Kxf5 {[%clk 0:00:20]} 33. Ra8 {[%clk 0:00:38]}  Re6+ {[%clk 0:00:20]} 34. Kf3 {[%clk 0:00:36]}  g4+ {[%clk 0:00:20]} 35. Kg3 {[%clk 0:00:36]}  Re3+ {[%clk 0:00:19]} 36. Kf2 {[%clk 0:00:35]}  Rf3+ {[%clk 0:00:19]} 37. Kg2 {[%clk 0:00:35]}  Kf4 {[%clk 0:00:17]} 38. Rxa7 {[%clk 0:00:34]}  f5 {[%clk 0:00:15]} 39. Rxc7 {[%clk 0:00:34]}  Rd3 {[%clk 0:00:13]} 40. Rc4+ {[%clk 0:00:34]}  Kg5 {[%clk 0:00:11]} 41. Rc2 {[%clk 0:00:27]}  f4 {[%clk 0:00:11]} 42. Rc5+ {[%clk 0:00:27]}  Kh4 {[%clk 0:00:11]} 43. Rc2 {[%clk 0:00:22]}  g3 {[%clk 0:00:11]} 44. b4 {[%clk 0:00:20]}  f3+ {[%clk 0:00:09]} 45. Kg1 {[%clk 0:00:20]}  Rd1# {[%clk 0:00:10]} 0-1


[Site "https://www.chess.com"]

[Event "Titled Tuesday Blitz November 07 Early 2023"]
[White "Chxss_Khxsbu"]
[Black "Shapiro, Daniel"]
[BlackFideId "2001780"]
[WhiteElo "1863"]
[BlackElo "2317"]
[Result "0-1"]
[Round "6"]
[TimeControl "180+1"]
[Date "2023.11.07"]
[WhiteClock "0:00:11"]
[BlackClock "0:00:31"]
[Board "199"]

1. e4 {[%clk 0:01:30]}  c5 {[%clk 0:02:57]} 2. Nf3 {[%clk 0:01:30]}  Nc6 {[%clk 0:02:55]} 3. d4 {[%clk 0:01:30]}  cxd4 {[%clk 0:02:55]} 4. Nxd4 {[%clk 0:01:31]}  Nf6 {[%clk 0:02:55]} 5. Nc3 {[%clk 0:01:30]}  d6 {[%clk 0:02:56]} 6. Nxc6 {[%clk 0:01:26]}  bxc6 {[%clk 0:02:55]} 7. Bd3 {[%clk 0:01:26]}  e6 {[%clk 0:02:48]} 8. O-O {[%clk 0:01:23]}  Be7 {[%clk 0:02:48]} 9. f4 {[%clk 0:01:18]}  Qc7 {[%clk 0:02:42]} 10. Kh1 {[%clk 0:01:17]}  O-O {[%clk 0:02:42]} 11. Qe2 {[%clk 0:01:10]}  e5 {[%clk 0:02:31]} 12. fxe5 {[%clk 0:01:00]}  dxe5 {[%clk 0:02:19]} 13. Bg5 {[%clk 0:00:59]}  Be6 {[%clk 0:02:15]} 14. Bc4 {[%clk 0:00:54]}  Bg4 {[%clk 0:02:01]} 15. Qe3 {[%clk 0:00:50]}  Bh5 {[%clk 0:01:57]} 16. Rae1 {[%clk 0:00:41]}  Bg6 {[%clk 0:01:55]} 17. h4 {[%clk 0:00:29]}  Qb6 {[%clk 0:01:53]} 18. Qxb6 {[%clk 0:00:27]}  axb6 {[%clk 0:01:52]} 19. Bxf6 {[%clk 0:00:28]}  Bxf6 {[%clk 0:01:52]} 20. g3 {[%clk 0:00:29]}  b5 {[%clk 0:01:49]} 21. Bb3 {[%clk 0:00:29]}  Rfb8 {[%clk 0:01:38]} 22. a3 {[%clk 0:00:26]}  Rd8 {[%clk 0:01:33]} 23. Rd1 {[%clk 0:00:25]}  Bh5 {[%clk 0:01:32]} 24. Rd3 {[%clk 0:00:21]}  Rxd3 {[%clk 0:01:24]} 25. cxd3 {[%clk 0:00:22]}  Rd8 {[%clk 0:01:24]} 26. Bc2 {[%clk 0:00:22]}  Be7 {[%clk 0:01:15]} 27. Rf5 {[%clk 0:00:21]}  Bg6 {[%clk 0:01:05]} 28. Rxe5 {[%clk 0:00:21]}  Bd6 {[%clk 0:01:04]} 29. Rg5 {[%clk 0:00:21]}  h6 {[%clk 0:01:00]} 30. Rg4 {[%clk 0:00:22]}  Bh5 {[%clk 0:01:00]} 31. Rf4 {[%clk 0:00:21]}  Bxf4 {[%clk 0:01:00]} 32. gxf4 {[%clk 0:00:22]}  Kf8 {[%clk 0:00:52]} 33. Kg1 {[%clk 0:00:22]}  Ke7 {[%clk 0:00:52]} 34. Kf2 {[%clk 0:00:23]}  Kd6 {[%clk 0:00:52]} 35. Ke3 {[%clk 0:00:23]}  Kc5 {[%clk 0:00:51]} 36. d4+ {[%clk 0:00:20]}  Rxd4 {[%clk 0:00:40]} 37. b4+ {[%clk 0:00:19]}  Kc4 {[%clk 0:00:41]} 38. Ne2 {[%clk 0:00:18]}  Rd8 {[%clk 0:00:34]} 39. Ng3 {[%clk 0:00:16]}  Bg4 {[%clk 0:00:33]} 40. Bb1 {[%clk 0:00:15]}  Ra8 {[%clk 0:00:33]} 41. e5 {[%clk 0:00:12]}  Rxa3+ {[%clk 0:00:32]} 42. Ke4 {[%clk 0:00:11]}  Rxg3 {[%clk 0:00:31]} 0-1


[Site "https://www.chess.com"]

[Event "Titled Tuesday Blitz November 07 Early 2023"]
[White "LionKing2367890"]
[Black "Fernandez Hernandez, Gerardo"]
[BlackFideId "2207400"]
[WhiteElo "2239"]
[BlackElo "2119"]
[Result "1-0"]
[Round "6"]
[TimeControl "180+1"]
[Date "2023.11.07"]
[WhiteClock "0:00:54"]
[BlackClock "0:00:00"]
[Board "204"]

1. e4 {[%clk 0:02:59]}  e6 {[%clk 0:03:00]} 2. d4 {[%clk 0:02:59]}  d5 {[%clk 0:03:01]} 3. exd5 {[%clk 0:02:59]}  exd5 {[%clk 0:03:00]} 4. Bd3 {[%clk 0:03:00]}  Nc6 {[%clk 0:03:01]} 5. Ne2 {[%clk 0:03:00]}  Bd6 {[%clk 0:03:00]} 6. c3 {[%clk 0:03:00]}  Nge7 {[%clk 0:02:47]} 7. O-O {[%clk 0:02:59]}  Bf5 {[%clk 0:02:47]} 8. Bf4 {[%clk 0:02:55]}  O-O {[%clk 0:02:27]} 9. Na3 {[%clk 0:02:53]}  Re8 {[%clk 0:02:20]} 10. Nc2 {[%clk 0:02:52]}  Bxf4 {[%clk 0:02:12]} 11. Nxf4 {[%clk 0:02:52]}  Qd6 {[%clk 0:02:13]} 12. g3 {[%clk 0:02:44]}  Nd8 {[%clk 0:01:35]} 13. Ne3 {[%clk 0:02:42]}  Bxd3 {[%clk 0:01:13]} 14. Qxd3 {[%clk 0:02:43]}  Ne6 {[%clk 0:01:13]} 15. Nxe6 {[%clk 0:02:39]}  Qxe6 {[%clk 0:01:14]} 16. Rae1 {[%clk 0:02:38]}  Ng6 {[%clk 0:01:09]} 17. f4 {[%clk 0:02:33]}  Nf8 {[%clk 0:00:19]} 18. f5 {[%clk 0:02:32]}  Qd6 {[%clk 0:00:19]} 19. f6 {[%clk 0:02:24]}  g6 {[%clk 0:00:19]} 20. Ng4 {[%clk 0:02:17]}  Ne6 {[%clk 0:00:15]} 21. Re5 {[%clk 0:02:03]}  Qf8 {[%clk 0:00:14]} 22. Rfe1 {[%clk 0:01:54]}  c6 {[%clk 0:00:13]} 23. h4 {[%clk 0:01:21]}  h5 {[%clk 0:00:12]} 24. Rxe6 {[%clk 0:01:11]}  hxg4 {[%clk 0:00:06]} 25. Re7 {[%clk 0:01:11]}  Rxe7 {[%clk 0:00:03]} 26. fxe7 {[%clk 0:01:04]}  Qe8 {[%clk 0:00:03]} 27. Qe2 {[%clk 0:01:04]}  Kg7 {[%clk 0:00:01]} 28. Qxg4 {[%clk 0:01:02]}  f5 {[%clk 0:00:01]} 29. Qg5 {[%clk 0:01:02]}  Qf7 {[%clk 0:00:01]} 30. h5 {[%clk 0:00:58]}  Re8 {[%clk 0:00:00]} 31. Re5 {[%clk 0:00:54]} 1-0


[Site "https://www.chess.com"]

[Event "Titled Tuesday Blitz November 07 Early 2023"]
[White "abelmat"]
[Black "Hartikainen, Jarmo"]
[BlackFideId "503134"]
[WhiteElo "1970"]
[BlackElo "2177"]
[Result "0-1"]
[Round "6"]
[TimeControl "180+1"]
[Date "2023.11.07"]
[WhiteClock "0:00:00"]
[BlackClock "0:00:42"]
[Board "207"]

1. d4 {[%clk 0:02:34]}  d5 {[%clk 0:02:58]} 2. c4 {[%clk 0:02:34]}  c5 {[%clk 0:02:59]} 3. cxd5 {[%clk 0:02:23]}  Qxd5 {[%clk 0:02:58]} 4. Nf3 {[%clk 0:02:21]}  cxd4 {[%clk 0:02:58]} 5. Qxd4 {[%clk 0:02:19]}  Qxd4 {[%clk 0:02:56]} 6. Nxd4 {[%clk 0:02:20]}  a6 {[%clk 0:02:56]} 7. e4 {[%clk 0:02:16]}  e5 {[%clk 0:02:55]} 8. Nf3 {[%clk 0:02:16]}  Nc6 {[%clk 0:02:54]} 9. a3 {[%clk 0:02:14]}  Nf6 {[%clk 0:02:53]} 10. Nc3 {[%clk 0:02:14]}  Nd4 {[%clk 0:02:39]} 11. Nd5 {[%clk 0:01:42]}  Nxf3+ {[%clk 0:02:10]} 12. gxf3 {[%clk 0:01:39]}  Nxd5 {[%clk 0:02:10]} 13. exd5 {[%clk 0:01:39]}  Bd6 {[%clk 0:02:08]} 14. Rg1 {[%clk 0:01:31]}  g6 {[%clk 0:02:03]} 15. h4 {[%clk 0:01:29]}  h5 {[%clk 0:01:58]} 16. Bg5 {[%clk 0:01:25]}  Be7 {[%clk 0:01:41]} 17. Kd2 {[%clk 0:01:16]}  Bf5 {[%clk 0:01:31]} 18. Bd3 {[%clk 0:01:08]}  Bxd3 {[%clk 0:01:24]} 19. Kxd3 {[%clk 0:01:08]}  Kd7 {[%clk 0:01:11]} 20. Rac1 {[%clk 0:01:03]}  Rac8 {[%clk 0:01:10]} 21. Rxc8 {[%clk 0:00:41]}  Rxc8 {[%clk 0:01:09]} 22. b4 {[%clk 0:00:25]}  Bxg5 {[%clk 0:00:59]} 23. hxg5 {[%clk 0:00:20]}  Kd6 {[%clk 0:00:59]} 24. Ke4 {[%clk 0:00:08]}  Rc4+ {[%clk 0:00:57]} 25. Ke3 {[%clk 0:00:08]}  Kxd5 {[%clk 0:00:51]} 26. Rd1+ {[%clk 0:00:08]}  Ke6 {[%clk 0:00:46]} 27. Rd8 {[%clk 0:00:05]}  Rc3+ {[%clk 0:00:45]} 28. Ke2 {[%clk 0:00:04]}  Rxa3 {[%clk 0:00:42]} 29. Rb8 {[%clk 0:00:04]}  b5 {[%clk 0:00:42]} 30. Rb6+ {[%clk 0:00:00]}  Kf5 {[%clk 0:00:42]} 0-1


[Site "https://www.chess.com"]

[Event "Titled Tuesday Blitz November 07 Early 2023"]
[White "Pranav, V"]
[Black "Andreikin, Dmitry"]
[WhiteFideId "25060783"]
[BlackFideId "4158814"]
[WhiteElo "3064"]
[BlackElo "3118"]
[Result "1-0"]
[Round "7"]
[TimeControl "180+1"]
[Date "2023.11.07"]
[WhiteClock "0:00:15"]
[BlackClock "0:00:03"]
[Board "2"]

1. e4 {[%clk 0:02:58]}  c5 {[%clk 0:02:59]} 2. Nf3 {[%clk 0:02:54]}  e6 {[%clk 0:03:00]} 3. d4 {[%clk 0:02:54]}  cxd4 {[%clk 0:03:01]} 4. Nxd4 {[%clk 0:02:55]}  Nc6 {[%clk 0:03:01]} 5. Nc3 {[%clk 0:02:55]}  a6 {[%clk 0:03:00]} 6. Be3 {[%clk 0:02:55]}  Nf6 {[%clk 0:03:00]} 7. Qf3 {[%clk 0:02:49]}  h5 {[%clk 0:02:59]} 8. O-O-O {[%clk 0:02:44]}  Ng4 {[%clk 0:02:55]} 9. Nxc6 {[%clk 0:02:35]}  bxc6 {[%clk 0:02:56]} 10. Bf4 {[%clk 0:02:26]}  e5 {[%clk 0:02:55]} 11. Bg3 {[%clk 0:02:22]}  Qg5+ {[%clk 0:02:49]} 12. Kb1 {[%clk 0:02:15]}  h4 {[%clk 0:02:49]} 13. Bc4 {[%clk 0:01:43]}  Nf6 {[%clk 0:02:40]} 14. Bxe5 {[%clk 0:01:42]}  Qxe5 {[%clk 0:02:40]} 15. Qd3 {[%clk 0:01:42]}  Rb8 {[%clk 0:02:33]} 16. f4 {[%clk 0:01:41]}  Qa5 {[%clk 0:02:10]} 17. e5 {[%clk 0:01:39]}  Ng4 {[%clk 0:02:10]} 18. Ne4 {[%clk 0:01:31]}  Qb6 {[%clk 0:02:01]} 19. Bb3 {[%clk 0:01:30]}  Nf2 {[%clk 0:01:58]} 20. Nxf2 {[%clk 0:01:17]}  Qxf2 {[%clk 0:01:59]} 21. Qc4 {[%clk 0:01:18]}  Rxb3 {[%clk 0:01:54]} 22. axb3 {[%clk 0:01:18]}  Qxg2 {[%clk 0:01:47]} 23. f5 {[%clk 0:01:18]}  Rh6 {[%clk 0:01:20]} 24. Rhe1 {[%clk 0:01:10]}  Be7 {[%clk 0:01:09]} 25. f6 {[%clk 0:00:57]}  gxf6 {[%clk 0:01:07]} 26. Rg1 {[%clk 0:00:55]}  Qf3 {[%clk 0:00:57]} 27. Rd3 {[%clk 0:00:50]}  Qf2 {[%clk 0:00:30]} 28. Rg8+ {[%clk 0:00:50]}  Bf8 {[%clk 0:00:30]} 29. Qb4 {[%clk 0:00:50]}  c5 {[%clk 0:00:30]} 30. Qb8 {[%clk 0:00:50]}  Qe1+ {[%clk 0:00:29]} 31. Rd1 {[%clk 0:00:33]}  Qxd1+ {[%clk 0:00:29]} 32. Ka2 {[%clk 0:00:33]}  Ke7 {[%clk 0:00:20]} 33. Qxc8 {[%clk 0:00:32]}  Qd2 {[%clk 0:00:12]} 34. Qxf8+ {[%clk 0:00:20]}  Ke6 {[%clk 0:00:12]} 35. Qe8+ {[%clk 0:00:20]}  Kf5 {[%clk 0:00:12]} 36. c3 {[%clk 0:00:20]}  fxe5 {[%clk 0:00:07]} 37. Qxf7+ {[%clk 0:00:16]}  Rf6 {[%clk 0:00:08]} 38. Qh7+ {[%clk 0:00:15]}  Kf4 {[%clk 0:00:03]} 39. Qxh4+ {[%clk 0:00:15]}  Kf5 {[%clk 0:00:03]} 40. Qg4# {[%clk 0:00:15]} 1-0


[Site "https://www.chess.com"]

[Event "Titled Tuesday Blitz November 07 Early 2023"]
[White "Duda, Jan-Krzysztof"]
[Black "Aravindh, Chithambaram VR."]
[WhiteFideId "1170546"]
[BlackFideId "5072786"]
[WhiteElo "3081"]
[BlackElo "2938"]
[Result "1-0"]
[Round "7"]
[TimeControl "180+1"]
[Date "2023.11.07"]
[WhiteClock "0:00:13"]
[BlackClock "0:00:00"]
[Board "4"]

1. c4 {[%clk 0:03:00]}  e6 {[%clk 0:02:59]} 2. Nf3 {[%clk 0:03:00]}  Nf6 {[%clk 0:02:59]} 3. g3 {[%clk 0:03:00]}  b6 {[%clk 0:02:59]} 4. Bg2 {[%clk 0:03:00]}  Bb7 {[%clk 0:03:00]} 5. O-O {[%clk 0:03:00]}  c5 {[%clk 0:02:58]} 6. Nc3 {[%clk 0:02:58]}  Be7 {[%clk 0:02:56]} 7. d4 {[%clk 0:02:55]}  cxd4 {[%clk 0:02:57]} 8. Qxd4 {[%clk 0:02:54]}  Nc6 {[%clk 0:02:57]} 9. Qf4 {[%clk 0:02:54]}  O-O {[%clk 0:02:55]} 10. Rd1 {[%clk 0:02:54]}  d6 {[%clk 0:02:49]} 11. b3 {[%clk 0:02:49]}  a6 {[%clk 0:02:41]} 12. Ng5 {[%clk 0:02:35]}  Qc7 {[%clk 0:02:34]} 13. Nce4 {[%clk 0:02:13]}  h6 {[%clk 0:02:19]} 14. Nf3 {[%clk 0:01:58]}  Nxe4 {[%clk 0:02:07]} 15. Qxe4 {[%clk 0:01:59]}  Bf6 {[%clk 0:02:06]} 16. Rb1 {[%clk 0:01:46]}  Nb4 {[%clk 0:01:59]} 17. Qe3 {[%clk 0:01:26]}  Nxa2 {[%clk 0:01:45]} 18. Bb2 {[%clk 0:01:26]}  Bxb2 {[%clk 0:01:21]} 19. Rxb2 {[%clk 0:01:27]}  Nb4 {[%clk 0:01:21]} 20. Qd2 {[%clk 0:01:27]}  Qc5 {[%clk 0:00:32]} 21. Qxd6 {[%clk 0:01:23]}  Be4 {[%clk 0:00:20]} 22. Qxc5 {[%clk 0:01:02]}  bxc5 {[%clk 0:00:21]} 23. Ne5 {[%clk 0:01:03]}  Bxg2 {[%clk 0:00:19]} 24. Kxg2 {[%clk 0:01:03]}  Rfd8 {[%clk 0:00:14]} 25. Rbd2 {[%clk 0:00:58]}  Rxd2 {[%clk 0:00:15]} 26. Rxd2 {[%clk 0:00:59]}  f6 {[%clk 0:00:15]} 27. Nd7 {[%clk 0:00:59]}  Rc8 {[%clk 0:00:15]} 28. Nb6 {[%clk 0:00:45]}  Rb8 {[%clk 0:00:13]} 29. Na4 {[%clk 0:00:44]}  Rc8 {[%clk 0:00:08]} 30. f4 {[%clk 0:00:42]}  e5 {[%clk 0:00:06]} 31. fxe5 {[%clk 0:00:36]}  fxe5 {[%clk 0:00:06]} 32. Kf3 {[%clk 0:00:36]}  Nc6 {[%clk 0:00:07]} 33. Ke4 {[%clk 0:00:28]}  Nd4 {[%clk 0:00:07]} 34. Rb2 {[%clk 0:00:28]}  Kf7 {[%clk 0:00:03]} 35. e3 {[%clk 0:00:28]}  Ne6 {[%clk 0:00:04]} 36. Kxe5 {[%clk 0:00:22]}  Rb8 {[%clk 0:00:03]} 37. Kd6 {[%clk 0:00:19]}  Rd8+ {[%clk 0:00:03]} 38. Kc6 {[%clk 0:00:17]}  Rd3 {[%clk 0:00:03]} 39. Nxc5 {[%clk 0:00:15]}  Rxe3 {[%clk 0:00:03]} 40. Nxe6 {[%clk 0:00:14]}  Kxe6 {[%clk 0:00:04]} 41. b4 {[%clk 0:00:14]}  h5 {[%clk 0:00:03]} 42. b5 {[%clk 0:00:13]}  axb5 {[%clk 0:00:03]} 43. cxb5 {[%clk 0:00:13]}  Rc3+ {[%clk 0:00:03]} 44. Kb7 {[%clk 0:00:14]}  g5 {[%clk 0:00:03]} 45. b6 {[%clk 0:00:14]}  Kd7 {[%clk 0:00:00]} 46. Kb8 {[%clk 0:00:13]} 1-0


[Site "https://www.chess.com"]